Cogmind - Beta 16 @@@ ROGUE MODE // 2025.10.28 @ 16:57:19 Player: btrs Result: Destroyed by DN-TU3(R) with Subdweller Laser Performance ------------- Evolutions (0) 0 Regions Visited (2) 400 Robots Destroyed (31) 155 Value Destroyed (679) 679 Prototype IDs (2) 40 Alien Tech Used (0) 0 Bonus (0) 0 TOTAL SCORE: 1274 Bonus ------- None Cogmind --------- Core Integrity 0/250 Matter 43/300 Energy 35/100 System Corruption 3% Temperature Cool (6) Movement Treading (160) Location -10/Subcaves Parts ------- > --- POWER (1) -------- (None) > --- PROPULSION (2) --- Light Treads Light Treads > --- UTILITY (2) ------ Medium Storage Unit Visual Processing Unit > --- WEAPON (2) ------- Subdweller Beam Cannon Subdweller Shrapnel Launcher > --- INVENTORY (10) --- Improved Ion Engine Improved Ion Engine Disposable Heat Sink Barrage Gun Barrage Gun Shrapnel Trap Shrapnel Trap Peak State ------------ > --- POWER ------------ Improved Ion Engine > --- PROPULSION ------- Light Treads Light Treads > --- UTILITY ---------- Medium Storage Unit Visual Processing Unit > --- WEAPON ----------- Subdweller Machine Gun Barrage Gun > --- INVENTORY -------- Improved Ion Engine Improved Ion Engine Improved Ion Engine Light Treads Light Treads Small Laser Assault Rifle Light Assault Rifle Light Assault Rifle Grenade Launcher [Rating: 13] Favorites ----------- Power Improved Ion Engine Engine Improved Ion Engine Propulsion Light Treads Treads Light Treads Utility Medium Storage Unit Device Tractor Beam Storage Medium Storage Unit Processor Visual Processing Unit Weapon Barrage Gun Energy Cannon Subdweller Beam Cannon Ballistic Gun Barrage Gun Launcher Subdweller Shrapnel Launcher Build | -11 -10 -10 ------- Run | Yrd Mat Sub Slots Evolved . | . . . Power . | . . . Propulsion . | . . . Utility . | . . . Weapon . | . . . Parts Attached 22 | 6 7 9 Power 4 | 1 3 . Engine 4 | 1 3 . Core . | . . . Reactor . | . . . Propulsion 4 | 2 . 2 Treads 4 | 2 . 2 Leg . | . . . Wheel . | . . . Hover . | . . . Flight . | . . . Utility 5 | 1 3 1 Device 1 | . 1 . Storage 2 | 1 1 . Processor 2 | . 1 1 Hackware . | . . . Protection . | . . . Artifact . | . . . Weapon 9 | 2 1 6 Energy Gun . | . . . Energy Cannon 1 | . . 1 Ballistic Gun 6 | 2 1 3 Ballistic Cannon . | . . . Launcher 2 | . . 2 Special Weapon . | . . . Impact Weapon . | . . . Slashing Weapon . | . . . Piercing Weapon . | . . . Special Melee Weapon . | . . . Unidentified Prototypes . | . . . Parts Lost 4 | . . 4 Power 1 | . . 1 Propulsion 2 | . . 2 Utility . | . . . Weapon 1 | . . 1 Highest Loss Streak 4 | . . 4 To Critical Strikes . | . . . Average Backups 7 | . 6 9 Power 2 | . 2 2 Propulsion 1 | . 1 1 Utility . | . . . Weapon 3 | . 2 4 Tool/Special . | . . . Unused Backups 8 | . 1 7 Power 4 | . 1 3 Propulsion . | . . . Utility 1 | . . 1 Weapon 3 | . . 3 Tool/Special . | . . . Average Slot Usage (%) 98 | . 96 99 Engine 13 | . 14 13 Treads 27 | . 28 27 Storage 14 | . 14 14 Processor 12 | . 9 14 Ballistic Gun 22 | . 28 19 Launcher 4 | . . 6 Peak Build Rating 13 | 6 9 13 Average Rating 10 | 4 7 12 On Entrance 5 | . 6 9 Avg Prop Armor Cover (%) . | . . . Naked Turns . | . . . Heaviest Build 33 | 11 20 33 Greatest Support 40 | 40 40 40 Greatest Overweight (x) . | . . . Average Overweight (x) . | . . . Largest Inventory Capacity 10 | 8 10 10 Average Capacity 9 | 6 9 10 Most Carried 10 | 1 10 10 Average Carried 8 | . 6 9 Final Capacity 10 | 8 10 10 Final Carried 10 | 1 10 7 Class Distribution -------------------- 100% | Mutant Dominant Class ---------------- Mutant | -10/Materials Mutant | -10/Subcaves Resources | -11 -10 -10 ----------- Run | Yrd Mat Sub Matter Collected 907 | 251 381 275 Remotely 60 | . 60 . Salvage Created 941 | . 626 315 Parts 52 | . 41 11 Haulers Intercepted 1 | . 1 . Recyclers Shooed 3 | . 3 . Parts Field Recycled . | . . . Retrieved Matter . | . . . Parts Self-Destructed 13 | . . 13 Prevented . | . . . Parts Restored . | . . . Kills | -11 -10 -10 ------- Run | Yrd Mat Sub Combat Hostiles Destroyed 23 | . 12 11 Guns 16 | . 12 4 Cannons 1 | . . 1 AOE 6 | . . 6 Classes Destroyed 8 | . 7 1 Worker 1 | . 1 . Builder 2 | . 2 . Hauler 1 | . 1 . Recycler 3 | . 3 . Watcher 1 | . 1 . Swarmer 9 | . 9 . Grunt 3 | . 3 . Subdweller 11 | . . 11 Best Kill Streak 6 | . 4 6 Combat Bots Only 6 | . 3 6 Max Kills in Single Turn 1 | . 1 1 Gunslinging . | . . . Exploded 1 | . . 1 Melee . | . . . Uniques/NPCs Destroyed . | . . . Combat | -11 -10 -10 -------- Run | Yrd Mat Sub Hostile Shots Fired 104 | . 70 34 Missed 25 | . 15 10 Hits 79 | . 55 24 Projectile 79 | . 55 24 Critical Strikes 2 | . . 2 Damage Taken 1393 | . 504 889 Core 254 | . 82 172 Absorbed by Shields . | . . . Core Remaining (%) 100 | 100 . . Volleys Fired 122 | . 68 54 Largest 2 | . 2 2 Hottest 120 | . 40 120 Shots Fired 210 | . 136 74 Gun 182 | . 136 46 Cannon 14 | . . 14 Launcher 14 | . . 14 Special . | . . . Kinetic 196 | . 136 60 Thermal 14 | . . 14 Explosive . | . . . Electromagnetic . | . . . Robot Hit Streak 11 | . 11 11 Robot Miss Streak 5 | . 5 3 Penetration Max . | . . . Secondary Targets . | . . . Shots Hit Robots 110 | . 84 26 Core Hits 53 | . 31 22 Critical Kills 1 | . . 1 Critical Parts Destroyed 3 | . 3 . Critical Strikes 4 | . 3 1 Destroy 4 | . 3 1 Melee Attacks . | . . . Impact . | . . . Slashing . | . . . Piercing . | . . . Sneak Attacks . | . . . Combat Hostiles . | . . . Follow-up Attacks . | . . . Damage Inflicted 2339 | . 871 1468 Guns 1225 | . 867 358 Cannons 193 | . . 193 Explosions 917 | . . 917 Melee . | . . . Ramming 4 | . 4 . Kinetic 2142 | . 867 1275 Thermal 193 | . . 193 Explosive . | . . . Electromagnetic . | . . . Impact . | . . . Slashing . | . . . Piercing . | . . . Highest Corruption 3 | . . 3 Average Corruption 3 | . . 3 Corruption Purged . | . . . Corruption Blocked . | . . . Overload Shots . | . . . Overflow Damage . | . . . Projectiles . | . . . Explosions . | . . . Melee . | . . . Knockbacks . | . . . Impact . | . . . Kinetic . | . . . Secondary . | . . . Self-Inflicted Damage 84 | . . 84 Shots 2 | . . 2 Rammed 1 | . 1 . Targets Rammed 1 | . 1 . Kicked . | . . . Crushed . | . . . Highest Temperature 12 | . 12 9 Average Temperature 3 | . 4 2 Received Heat Transfer 237 | . 126 111 Siege Activations . | . . . Martial Activations . | . . . Shielding Activations . | . . . Robots Disrupted . | . . . Combat Hostiles . | . . . Robots Corrupted . | . . . Combat Hostiles . | . . . Parts Fried . | . . . Impact Corruptions . | . . . Robots Melted . | . . . Combat Hostiles . | . . . Parts Melted . | . . . Heat Transferred 259 | . . 259 Parts Sabotaged . | . . . Parts Stolen . | . . . Parts Stripped . | . . . Power Chain Reactions . | . . . Alert | -11 -10 -10 ------- Run | Yrd Mat Sub Maximum Alert Level . | . . . Low Security (%) 100 | 100 100 . Level 1 . | . . . Level 2 . | . . . Level 3 . | . . . Level 4 . | . . . Level 5 . | . . . High Security . | . . . Max Security . | . . . Peak Influence 142 | . 142 . Initial . | . . . Average 54 | . 60 . Influence Increases 324 | . 324 . Destroy 0b10 Robot/C 240 | . 240 . Destroy 0b10 Robot/NC 40 | . 40 . Destroy Leader 44 | . 44 . Influence Decreases 324 | . 320 4 Entered New Map 3 | . . 3 Time Decay 321 | . 320 1 Squads Dispatched 1 | . 1 . Investigation 1 | . 1 . Extermination . | . . . Reinforcement . | . . . Assault . | . . . Garrison . | . . . Intercept . | . . . Searches Triggered . | . . . Construction Impeded . | . . . Haulers Reinforced . | . . . Active Scanning Responses . | . . . Cargo Convoy Interrupts . | . . . Stealth | -11 -10 -10 --------- Run | Yrd Mat Sub Distress Signals 2 | . 2 . Communications Jammed . | . . . Distress Signals . | . . . Times Spotted 32 | . 20 12 Peak Tracking Total 5 | . 5 4 Tactical Retreats . | . . . Traps | -11 -10 -10 ------- Run | Yrd Mat Sub Traps Triggered 1 | . 1 . Indirectly . | . . . Trap Hack Attempts . | . . . Triggered . | . . . Disarmed . | . . . Reprogrammed . | . . . Reused 1 | . . 1 Traps Extracted . | . . . Installed 1 | . . 1 Triggered . | . . . Most Traps Carried 2 | . . 2 Machines | -11 -10 -10 ---------- Run | Yrd Mat Sub Machines Disabled . | . . . Max in Single Turn . | . . . Machines Repaired . | . . . Machines Dismantled . | . . . Machines Sabotaged . | . . . Overloaded Fab Kills . | . . . Hacking | -11 -10 -10 --------- Run | Yrd Mat Sub Machines Accessed 2 | . 2 . Terminals 2 | . 2 . Fabricators . | . . . Repair Stations . | . . . Recycling Units . | . . . Scanalyzers . | . . . Garrison Access . | . . . Total Hacks 4 | . 4 . Successful 3 | . 3 . Failed 1 | . 1 . Catastrophic . | . . . Database Lockouts . | . . . Manual . | . . . Terminals 4 | . 4 . Fabricators . | . . . Repair Stations . | . . . Recycling Units . | . . . Scanalyzers . | . . . Garrison Access . | . . . Terminal Hacks 3 | . 3 . Record 1 | . 1 . Prototype ID Bank 1 | . 1 . Dispatch Records 1 | . 1 . Fabricator Hacks . | . . . Repair Station Hacks . | . . . Recycling Unit Hacks . | . . . Scanalyzer . | . . . Garrison Access Hacks . | . . . Unauthorized Hacks . | . . . Terminals . | . . . Fabricators . | . . . Repair Stations . | . . . Recycling Units . | . . . Scanalyzers . | . . . Garrison Access . | . . . Data Cores Recovered . | . . . Used . | . . . Hacking Detections 2 | . 2 . Full Trace Events 1 | . 1 . Feedback Events . | . . . Feedback Blocked . | . . . Robot Schematics Acquired . | . . . Robots Built . | . . . Authchips . | . . . Time . | . . . Total Robot Build Rating . | . . . Part Schematics Acquired . | . . . Parts Built . | . . . Authchips . | . . . Time . | . . . Total Part Build Rating . | . . . Part Studies Acquired . | . . . Parts Repaired . | . . . Time . | . . . Parts Recycled . | . . . Recycled Matter . | . . . Retrieved Matter . | . . . Retrieved Components . | . . . Parts Scanalyzed . | . . . Part Schematics Acquired . | . . . Parts Damaged . | . . . Bothacking | -11 -10 -10 ------------ Run | Yrd Mat Sub Used RIF Installer . | . . . Robots Hacked . | . . . Non-combat . | . . . Combat . | . . . Robot Hacks Applied . | . . . Relay Couplers Released . | . . . Fabnet Peak Effective % . | . . . Robots Rewired . | . . . Allies Hacked . | . . . Hacks Repelled . | . . . Allies | -11 -10 -10 -------- Run | Yrd Mat Sub Total Allies . | . . . Largest Group . | . . . Highest-Rated Group . | . . . Highest-Rated Ally . | . . . Total Orders . | . . . Ally Attacks . | . . . Total Damage . | . . . Kills . | . . . Allies Corrupted . | . . . Allies Melted . | . . . Intel | -11 -10 -10 ------- Run | Yrd Mat Sub Active Infowar (turns) 2161 | . 583 1578 Optics 1459 | . . 1459 T.N.C. 702 | . 583 119 Robot Analysis Total . | . . . Derelict Logs Recovered . | . . . Drone Launches . | . . . Drone Recoveries . | . . . Exploration | -11 -10 -10 ------------- Run | Yrd Mat Sub Turns Passed 2511 | 91 842 1578 Spaces Moved 1301 | 56 377 868 Core 7 | 7 . . Treads 1294 | 49 377 868 Legs . | . . . Wheels . | . . . Hover . | . . . Flight . | . . . Fastest Speed 50 | 50 160 160 Average Speed 159 | 146 160 160 Slowest Speed 160 | 160 160 160 Overloaded Moves . | . . . Propulsion Burnouts . | . . . Robots Hopped . | . . . Potential Cave-ins . | . . . Cave-ins Triggered 1 | . . 1 Exploration Rate (%) 30 | 4 45 43 Regions Visited 2 Branch Regions 1 Pre-discovered Areas . | . . . Known Exits Taken . | . . . Unknown Exits Taken 2 | 1 1 . Scrap Searched 10 | . . 10 Spaces Dug . | . . . Terrain Destroyed 164 | . . 164 Melee . | . . . Projectile 1 | . . 1 AOE 163 | . . 163 Terrain Rammed . | . . . Walls Destroyed . | . . . Machines Disabled . | . . . Actions | -11 -10 -10 --------- Run | Yrd Mat Sub Total 1546 | 62 495 989 Wait 61 | . 26 35 Move 1299 | 55 376 868 Hop . | . . . Pick Up 20 | 1 9 10 Fast Attach 10 | 6 4 . Attach 3 | . . 3 Detach . | . . . Swap 14 | . 6 8 Drop 15 | . 5 10 Fire 122 | . 68 54 Melee . | . . . Ram . | . . . Kick . | . . . Crush 1 | . 1 . Escape Stasis . | . . . Rewire . | . . . Trap 1 | . . 1 Miscellaneous . | . . . Route ------- -11/Scrapyard -10/Materials (discovered 4 exits: [*Mat x2] / [*Min] / [*Sub]) -10/Subcaves History --------- Turn | Location | Event 4 | -11/Scrapyard | Discovered new exit (range 16) 92 | -11/Scrapyard | Entered Materials 314 | -10/Materials | Build established: Mutant 659 | -10/Materials | Discovered new exit (range 5) 859 | -10/Materials | Discovered new exit (range 16) 898 | -10/Materials | Discovered new exit (range 15) 929 | -10/Materials | Discovered new exit (range 4) 934 | -10/Materials | Entered Subcaves 1136 | -10/Subcaves | Shifting Twisted Machinery released Sub. Laser 1136 | -10/Subcaves | Shifting Twisted Machinery released Sub. Shrapnel Launcher 1810 | -10/Subcaves | Core integrity fell below 50% 2497 | -10/Subcaves | Crushed by falling debris 2497 | -10/Subcaves | Core integrity fell below 20% 2512 | -10/Subcaves | Destroyed by DN-TU3(R) with Subdweller Laser Last Messages --------------- 02475_ DN-TU3(R): "ARGHSUB!" 02475_ IF-1L8(R): "GOODGOOD!" 02476_ IF-1L8(R) destroyed. 02477_ W0-DCF(R): "SLEEPOVER!" 02477_ 21-Q5Z(R): "ARGHSUB!" 02478_ NI-WBY(R): "ARGHSUB!" 02479_ NI-WBY(R) destroyed. 02486_ Lgt. Treads destroyed. 02487_ W0-DCF(R) affixes Scrap Shield Fragment to Scrap Shield. 02489_ W0-DCF(R) destroyed. 02492_ DN-TU3(R) affixes Scrap Shield Fragment to Scrap Shield. 02497_ The unstable cave ceiling collapses. 02497_ Crushed by falling debris. 02497_ Sub. Shrapnel Launcher destroyed. 02497_ System corrupted by crushing effect (+2). 02497_ Imp. Ion Engine destroyed. 02497_ System corrupted by crushing effect (+1). 02498_ Acquired 19 matter. 02500_ Acquired 16 matter. 02503_ DN-TU3(R) affixes Scrap Shield Fragment to Scrap Shield. Map ----- +----------------------------------------------------+ | ?????????????????????????????????????????????????? | | ?????????????????????????????????????????????????? | | ?????????????????????????????????????????????????? | | ?????????????????????????????????????????????????? | | ?????????????????????????????????????????????????? | | ?????????????????????????????????????????????????? | | ????????????????????????????????????????????????? | | ?????????????????????????????????????????????????? | | ??????????????? ???????????????????????????????? | | ???????????? ???????????????????????????????? | | #??????????# ????????##?????????????????????? | | ##????? ### ???????# ?????????????????????? | | #????? ??????# ?? ??????????????????? | | #?????? ?##### ""? ??????????????????? | | #???????# ## "" ? ????????????????? | | ???? ???# "" ?"""???????????????? | | ?? ???? ""##"""?##????????????? | | ? ????? ;;;##;;#????????????? | | ????? " #????????????? | | #??????? " #????????????? | | #????????# "# #????????????? | | ##????#### ;#;;# ##???????????? | | ? ###??# #???????????? | | ?? ? ##??# #???????????? | | ?##### #??# &[ ;#???????????? | | ## ## ##?# #= @& R #???????????? | | ## ### &* % !#???????????? | | # ; % #??????????? | | ## #??????????? | | "#? ##??????????? | | ""#? ##???????????? | | #####?## #????????????? | | # ### ## #???????# ###????????????? | | ## #?# ### #????????######??????????????? | | ?# ?#####?###### #??????????????????????????? | | ?## ???????????#######??????????????????????????? | | ??? ????????????????????????????????????????????? | | ??? ???????????????????????????????????????????? | | ??? ???????????????????????????????????????????? | | ???# ??????????????????????????????????????????? | | ???? ??????????????????????????????????????????? | | ????# ?????????????????????????????????????????? | | ?????# ?????????????????????????????????????????? | | ??????##?????????????????????????????????????????? | | ?????????????????????????????????????????????????? | | ?????????????????????????????????????????????????? | | ?????????????????????????????????????????????????? | | ?????????????????????????????????????????????????? | | ?????????????????????????????????????????????????? | | ?????????????????????????????????????????????????? | +----------------------------------------------------+ Best States ------------- Heat Dissipation 25 Energy Generation 12 Energy Capacity 265 Matter Stores 300 Matter Capacity 300 Sight Range 18 Terrain Scan Density 10 Evasion (%) 40 Recoil Reduction 2 Item Schematics ----------------- None Robot Schematics ------------------ None Fabricated ------------ Nothing Repaired ---------- Nothing Studied --------- None Alien Tech Used ----------------- None Achievements -------------- Spot Them First Challenges ------------ None Game ------ Seed InsulatedAdvancedCasing Manual? 0 Play Time 00:18:45 Cumulative 92.6 hours Start 2025.10.28 @ 16:38:53 End 2025.10.28 @ 16:57:19 Sessions 1 Manual Loads 0 Difficulty Rogue Special Mode None Game No. 55 Rogue 49 Adventurer 6 Explorer 0 Win Type - Total 3 Types 3/0/0/0/0/0/0/0/0/0 Lore% 25 Gallery% 43 Achievement% 25 Wizard Run 0 Options --------- Layout 0 ASCII 1 Keyboard 1 Movement Vi Keybinds 0 Fullscreen 1 Font 24/Smallcaps Map View 76x50 Zoom Use 0% Tactical HUD 1 Map Filters NONE Filters NONE Steam 1 RUN: d6207e1a-82ff-4c8a-8ca4-92292421602a